[Event "*** Titled Tuesday Blitz"]
[Site "Chess.com"]
[Date "2021.04.27"]
[Round "6"]
[White "Loy_Konstantin"]
[Black "DonBroca"]
[Result "1/2-1/2"]
[WhiteElo "2370"]
[BlackElo "2218"]
[TimeControl "180+1"]
[EndTime "11:06:07 PDT"]
[Termination "Game drawn by stalemate"]

1. e4 {[%clk 0:03:00.4]} 1... c5 {[%clk 0:02:59.7]} 2. Nf3 {[%clk 0:03:00.3]}
2... d6 {[%clk 0:02:59.4]} 3. d4 {[%clk 0:03:00.1]} 3... cxd4 {[%clk 0:03:00.3]}
4. Qxd4 {[%clk 0:03:00.7]} 4... Nf6 {[%clk 0:03:01.2]} 5. e5 {[%clk 0:03:00.2]}
5... Nc6 {[%clk 0:02:59]} 6. Bb5 {[%clk 0:02:59.1]} 6... Nd7 {[%clk 0:02:58.6]}
7. Bxc6 {[%clk 0:02:58.8]} 7... bxc6 {[%clk 0:02:57.8]} 8. exd6 {[%clk
0:02:59.1]} 8... exd6 {[%clk 0:02:58.7]} 9. O-O {[%clk 0:02:57.6]} 9... Nf6
{[%clk 0:02:53.4]} 10. Bg5 {[%clk 0:02:45.6]} 10... Be6 {[%clk 0:02:52.3]} 11.
Bxf6 {[%clk 0:02:25.3]} 11... Qxf6 {[%clk 0:02:53.2]} 12. Qxf6 {[%clk 0:02:25]}
12... gxf6 {[%clk 0:02:52.8]} 13. Nd4 {[%clk 0:02:25.5]} 13... c5 {[%clk
0:02:50.7]} 14. Nxe6 {[%clk 0:02:11.1]} 14... fxe6 {[%clk 0:02:51.6]} 15. c4
{[%clk 0:02:11.2]} 15... Bg7 {[%clk 0:02:23.4]} 16. Nc3 {[%clk 0:02:11.4]} 16...
f5 {[%clk 0:02:18.4]} 17. Rfe1 {[%clk 0:02:11.1]} 17... Bxc3 {[%clk 0:02:13.6]}
18. bxc3 {[%clk 0:02:08.4]} 18... Kd7 {[%clk 0:02:09.4]} 19. Rab1 {[%clk
0:02:03.4]} 19... Rab8 {[%clk 0:02:08.9]} 20. f4 {[%clk 0:02:01.9]} 20... Rb6
{[%clk 0:02:06.3]} 21. Rb5 {[%clk 0:01:58]} 21... Rhb8 {[%clk 0:02:00.4]} 22.
Reb1 {[%clk 0:01:57.2]} 22... Kc6 {[%clk 0:01:56.1]} 23. R5b3 {[%clk 0:01:43.5]}
23... a5 {[%clk 0:01:50.9]} 24. Rxb6+ {[%clk 0:01:27.9]} 24... Rxb6 {[%clk
0:01:49.8]} 25. Rxb6+ {[%clk 0:01:28.8]} 25... Kxb6 {[%clk 0:01:49]} 26. Kf2
{[%clk 0:01:29.4]} 26... Kc6 {[%clk 0:01:48.6]} 27. Kf3 {[%clk 0:01:26.8]} 27...
d5 {[%clk 0:01:47.4]} 28. cxd5+ {[%clk 0:01:12.4]} 28... exd5 {[%clk 0:01:46]}
29. h3 {[%clk 0:01:02.6]} 29... h5 {[%clk 0:01:20.5]} 30. g4 {[%clk 0:01:01.3]}
30... fxg4+ {[%clk 0:01:18.2]} 31. hxg4 {[%clk 0:01:01.6]} 31... hxg4+ {[%clk
0:01:07.7]} 32. Kxg4 {[%clk 0:01:01.5]} 32... Kd6 {[%clk 0:01:07.9]} 33. f5
{[%clk 0:00:42.7]} 33... d4 {[%clk 0:01:00.3]} 34. cxd4 {[%clk 0:00:40]} 34...
cxd4 {[%clk 0:00:58.1]} 35. Kf4 {[%clk 0:00:39.2]} 35... d3 {[%clk 0:00:22.6]}
36. Ke3 {[%clk 0:00:37.9]} 36... Ke5 {[%clk 0:00:23]} 37. Kxd3 {[%clk 0:00:38]}
37... Kxf5 {[%clk 0:00:23.4]} 38. Kd4 {[%clk 0:00:33.8]} 38... Ke6 {[%clk
0:00:24.3]} 39. Kc5 {[%clk 0:00:33.9]} 39... Kd7 {[%clk 0:00:25.2]} 40. a4
{[%clk 0:00:33.6]} 40... Kc8 {[%clk 0:00:26.1]} 41. Kb5 {[%clk 0:00:33.9]} 41...
Kb8 {[%clk 0:00:27]} 42. Kxa5 {[%clk 0:00:34.8]} 42... Ka8 {[%clk 0:00:27.9]}
43. Kb5 {[%clk 0:00:35.7]} 43... Kb8 {[%clk 0:00:28.3]} 44. a5 {[%clk
0:00:36.6]} 44... Ka8 {[%clk 0:00:29.1]} 45. a6 {[%clk 0:00:37.5]} 45... Kb8
{[%clk 0:00:30]} 46. a7+ {[%clk 0:00:38.4]} 46... Ka8 {[%clk 0:00:30.9]} 47. Ka6
{[%clk 0:00:37.8]} 1/2-1/2

[Event "*** Titled Tuesday Blitz"]
[Site "Chess.com"]
[Date "2021.04.27"]
[Round "6"]
[White "Sueetin"]
[Black "kakorrhaphiophobie"]
[Result "1-0"]
[WhiteElo "2505"]
[BlackElo "2304"]
[TimeControl "180+1"]
[EndTime "11:06:10 PDT"]
[Termination "Sueetin won by resignation"]

1. d4 {[%clk 0:03:00.9]} 1... f5 {[%clk 0:02:59.6]} 2. Nc3 {[%clk 0:03:00]} 2...
Nf6 {[%clk 0:02:59.8]} 3. Bg5 {[%clk 0:03:00.6]} 3... d5 {[%clk 0:03:00.2]} 4.
e3 {[%clk 0:03:01]} 4... e6 {[%clk 0:02:58.4]} 5. Nf3 {[%clk 0:03:01.6]} 5... a6
{[%clk 0:02:57.6]} 6. Ne5 {[%clk 0:02:50.3]} 6... c5 {[%clk 0:02:55.7]} 7. Be2
{[%clk 0:02:48]} 7... Be7 {[%clk 0:02:51.4]} 8. Bh5+ {[%clk 0:02:42.5]} 8... g6
{[%clk 0:02:43.4]} 9. Be2 {[%clk 0:02:35.7]} 9... Nc6 {[%clk 0:02:32.6]} 10.
Nxc6 {[%clk 0:02:28.1]} 10... bxc6 {[%clk 0:02:32.5]} 11. O-O {[%clk 0:02:24.7]}
11... O-O {[%clk 0:02:30.9]} 12. Na4 {[%clk 0:02:24.2]} 12... Qa5 {[%clk
0:02:02.9]} 13. c3 {[%clk 0:02:12.7]} 13... Bd7 {[%clk 0:01:49.2]} 14. dxc5
{[%clk 0:02:04.3]} 14... Bxc5 {[%clk 0:01:45.4]} 15. b4 {[%clk 0:02:02.5]} 15...
Bxb4 {[%clk 0:01:40.9]} 16. cxb4 {[%clk 0:02:03.4]} 16... Qxb4 {[%clk
0:01:41.8]} 17. Rb1 {[%clk 0:01:59.7]} 17... Qd6 {[%clk 0:01:35.8]} 18. Nb6
{[%clk 0:01:58.1]} 18... Rae8 {[%clk 0:01:26.8]} 19. Nc4 {[%clk 0:01:52]} 19...
Qc7 {[%clk 0:01:19.2]} 20. Bf4 {[%clk 0:01:52.1]} 20... e5 {[%clk 0:01:15]} 21.
Nxe5 {[%clk 0:01:46.6]} 21... Rxe5 {[%clk 0:01:15.2]} 22. Qd4 {[%clk 0:01:43.8]}
22... Rfe8 {[%clk 0:01:15.4]} 23. Bxa6 {[%clk 0:01:33.7]} 23... g5 {[%clk
0:00:50.3]} 24. Rb7 {[%clk 0:01:23.4]} 24... Qxb7 {[%clk 0:00:36.6]} 25. Bxb7
{[%clk 0:01:17.7]} 25... gxf4 {[%clk 0:00:36.5]} 26. exf4 {[%clk 0:01:17.7]}
26... R5e6 {[%clk 0:00:35.7]} 27. a4 {[%clk 0:01:13.8]} 27... Kf7 {[%clk
0:00:27.1]} 28. a5 {[%clk 0:01:13.1]} 28... Re4 {[%clk 0:00:26.6]} 29. Qa1
{[%clk 0:01:06.8]} 29... Bc8 {[%clk 0:00:20.2]} 30. a6 {[%clk 0:00:57.4]} 30...
Bxb7 {[%clk 0:00:20.4]} 31. axb7 {[%clk 0:00:58.3]} 31... Rb4 {[%clk 0:00:20]}
32. Rb1 {[%clk 0:00:53.5]} 32... Rxb1+ {[%clk 0:00:19.9]} 33. Qxb1 {[%clk
0:00:54.4]} 33... Rb8 {[%clk 0:00:19.9]} 34. h4 {[%clk 0:00:49.5]} 34... Nd7
{[%clk 0:00:16.7]} 35. Qxf5+ {[%clk 0:00:48.6]} 35... Ke7 {[%clk 0:00:17.2]} 36.
Qxh7+ {[%clk 0:00:46.7]} 36... Kd6 {[%clk 0:00:17.7]} 37. h5 {[%clk 0:00:40.2]}
37... Rxb7 {[%clk 0:00:17.7]} 38. h6 {[%clk 0:00:39.2]} 38... Ke6 {[%clk
0:00:17.3]} 39. Qg6+ {[%clk 0:00:36.7]} 39... Nf6 {[%clk 0:00:17.7]} 40. g4
{[%clk 0:00:34]} 1-0

[Event "*** Titled Tuesday Blitz"]
[Site "Chess.com"]
[Date "2021.04.27"]
[Round "6"]
[White "VinzentSpitzl"]
[Black "HouseOfDurin"]
[Result "1-0"]
[WhiteElo "2407"]
[BlackElo "2135"]
[TimeControl "180+1"]
[EndTime "11:06:10 PDT"]
[Termination "VinzentSpitzl won on time"]

1. f4 {[%clk 0:03:00.9]} 1... c5 {[%clk 0:02:59.9]} 2. Nf3 {[%clk 0:02:59.9]}
2... d5 {[%clk 0:03:00.3]} 3. g3 {[%clk 0:02:58.9]} 3... d4 {[%clk 0:02:55.4]}
4. Bg2 {[%clk 0:02:58.4]} 4... g6 {[%clk 0:02:55]} 5. O-O {[%clk 0:02:57.1]}
5... Bg7 {[%clk 0:02:55]} 6. d3 {[%clk 0:02:52.8]} 6... Nc6 {[%clk 0:02:53.9]}
7. e4 {[%clk 0:02:52.9]} 7... dxe3 {[%clk 0:02:53.5]} 8. c3 {[%clk 0:02:50.2]}
8... Bf5 {[%clk 0:02:24.5]} 9. Bxe3 {[%clk 0:02:41.4]} 9... Qxd3 {[%clk
0:02:22.5]} 10. Qxd3 {[%clk 0:02:37.6]} 10... Bxd3 {[%clk 0:02:23.4]} 11. Rd1
{[%clk 0:02:38.1]} 11... c4 {[%clk 0:02:01.3]} 12. Na3 {[%clk 0:02:24.8]} 12...
a6 {[%clk 0:01:39.6]} 13. Bb6 {[%clk 0:02:13]} 13... Nf6 {[%clk 0:01:25.5]} 14.
Ne1 {[%clk 0:02:02.6]} 14... Nd7 {[%clk 0:01:11.7]} 15. Be3 {[%clk 0:01:56.7]}
15... Na5 {[%clk 0:00:35.4]} 16. Nxd3 {[%clk 0:01:40.9]} 16... cxd3 {[%clk
0:00:35.5]} 17. Rxd3 {[%clk 0:01:40.9]} 17... O-O-O {[%clk 0:00:36.2]} 18. Rad1
{[%clk 0:01:27.9]} 18... e5 {[%clk 0:00:34.4]} 19. b4 {[%clk 0:01:22.2]} 19...
Nc6 {[%clk 0:00:29.2]} 20. Nc4 {[%clk 0:01:18.9]} 20... Kc7 {[%clk 0:00:22.6]}
21. fxe5 {[%clk 0:01:03.3]} 21... Ncxe5 {[%clk 0:00:22.3]} 22. Nxe5 {[%clk
0:01:01.8]} 22... Bxe5 {[%clk 0:00:18.3]} 23. Bxb7 {[%clk 0:00:52.1]} 23... Bxc3
{[%clk 0:00:09]} 24. Bxa6 {[%clk 0:00:35.1]} 24... Bxb4 {[%clk 0:00:08.5]} 25.
Rc1+ {[%clk 0:00:34.4]} 25... Kb8 {[%clk 0:00:06.1]} 26. Rb3 {[%clk 0:00:31.2]}
26... Ka8 {[%clk 0:00:01.2]} 27. Rxb4 {[%clk 0:00:29.1]} 27... Rb8 {[%clk
0:00:01.2]} 28. Ra4 {[%clk 0:00:24.4]} 1-0

[Event "*** Titled Tuesday Blitz"]
[Site "Chess.com"]
[Date "2021.04.27"]
[Round "6"]
[White "Poghosyan_Suren"]
[Black "grandcoach"]
[Result "0-1"]
[WhiteElo "2339"]
[BlackElo "2248"]
[TimeControl "180+1"]
[EndTime "11:06:12 PDT"]
[Termination "grandcoach won by checkmate"]

1. e4 {[%clk 0:03:00.9]} 1... c5 {[%clk 0:02:59.4]} 2. Nf3 {[%clk 0:03:01.1]}
2... Nc6 {[%clk 0:02:59.9]} 3. Bb5 {[%clk 0:03:00.2]} 3... e6 {[%clk 0:02:58.9]}
4. Bxc6 {[%clk 0:02:59.5]} 4... bxc6 {[%clk 0:02:58.6]} 5. O-O {[%clk
0:03:00.2]} 5... Ne7 {[%clk 0:02:59]} 6. d3 {[%clk 0:02:59.9]} 6... Ng6 {[%clk
0:02:59.4]} 7. h4 {[%clk 0:03:00.1]} 7... Qc7 {[%clk 0:02:48.6]} 8. Nc3 {[%clk
0:02:51.6]} 8... e5 {[%clk 0:02:46.9]} 9. h5 {[%clk 0:02:39.4]} 9... Nf4 {[%clk
0:02:38.7]} 10. Bxf4 {[%clk 0:02:38.9]} 10... exf4 {[%clk 0:02:39.6]} 11. Re1
{[%clk 0:02:36.8]} 11... g6 {[%clk 0:02:29.9]} 12. e5 {[%clk 0:02:26.8]} 12...
Rb8 {[%clk 0:02:28.9]} 13. Ne4 {[%clk 0:02:21.6]} 13... Bg7 {[%clk 0:02:24.6]}
14. c3 {[%clk 0:02:06.9]} 14... O-O {[%clk 0:02:23.4]} 15. Nxc5 {[%clk 0:01:58]}
15... Rxb2 {[%clk 0:02:20.5]} 16. Qc1 {[%clk 0:01:43]} 16... Rb5 {[%clk
0:02:18.1]} 17. d4 {[%clk 0:01:39.2]} 17... d6 {[%clk 0:02:10.4]} 18. exd6
{[%clk 0:01:37.5]} 18... Qxd6 {[%clk 0:02:11]} 19. Ne4 {[%clk 0:01:38]} 19...
Qc7 {[%clk 0:01:59.2]} 20. a4 {[%clk 0:01:37.7]} 20... Rxh5 {[%clk 0:01:58.9]}
21. Nc5 {[%clk 0:01:29.9]} 21... Bg4 {[%clk 0:01:54]} 22. Nh2 {[%clk 0:01:24.1]}
22... Bf5 {[%clk 0:01:41]} 23. Nf3 {[%clk 0:01:12.2]} 23... Bg4 {[%clk
0:01:38.8]} 24. Nh2 {[%clk 0:01:12.1]} 24... Bf5 {[%clk 0:01:34]} 25. Nf3 {[%clk
0:01:12]} 25... g5 {[%clk 0:01:29.5]} 26. Ne5 {[%clk 0:01:01.3]} 26... f3 {[%clk
0:01:21.8]} 27. g4 {[%clk 0:00:48.5]} 27... Bxe5 {[%clk 0:01:18.6]} 28. gxh5
{[%clk 0:00:43.6]} 28... Bh2+ {[%clk 0:01:13.2]} 29. Kh1 {[%clk 0:00:44]} 29...
Bf4 {[%clk 0:01:06.4]} 30. Qd1 {[%clk 0:00:41.1]} 30... g4 {[%clk 0:00:52.7]}
31. Ne4 {[%clk 0:00:36.2]} 31... Kh8 {[%clk 0:00:49.3]} 32. d5 {[%clk
0:00:34.3]} 32... Qe7 {[%clk 0:00:40.4]} 33. Kg1 {[%clk 0:00:11]} 33... Qh4
{[%clk 0:00:36.4]} 34. Qd4+ {[%clk 0:00:11.5]} 34... f6 {[%clk 0:00:35.4]} 35.
Ng3 {[%clk 0:00:11.6]} 35... Bxg3 {[%clk 0:00:34.9]} 36. fxg3 {[%clk 0:00:12.5]}
36... Qxg3+ {[%clk 0:00:34.7]} 37. Kf1 {[%clk 0:00:13.1]} 37... Qg2# {[%clk
0:00:34.8]} 0-1

[Event "*** Titled Tuesday Blitz"]
[Site "Chess.com"]
[Date "2021.04.27"]
[Round "6"]
[White "Rsnr"]
[Black "szachuspl"]
[Result "1-0"]
[WhiteElo "2761"]
[BlackElo "2544"]
[TimeControl "180+1"]
[EndTime "11:06:14 PDT"]
[Termination "Rsnr won by resignation"]

1. d4 {[%clk 0:03:00.9]} 1... Nf6 {[%clk 0:02:59.2]} 2. c4 {[%clk 0:03:01.4]}
2... g6 {[%clk 0:02:59]} 3. h4 {[%clk 0:02:55.5]} 3... c5 {[%clk 0:02:53.9]} 4.
d5 {[%clk 0:02:46.7]} 4... Bg7 {[%clk 0:02:53.9]} 5. Nc3 {[%clk 0:02:34.7]} 5...
O-O {[%clk 0:02:52.4]} 6. e4 {[%clk 0:02:27.7]} 6... d6 {[%clk 0:02:52.7]} 7.
Bg5 {[%clk 0:02:12.3]} 7... h6 {[%clk 0:02:50.6]} 8. Bf4 {[%clk 0:02:04.9]} 8...
e6 {[%clk 0:02:49.5]} 9. Be2 {[%clk 0:02:04.4]} 9... exd5 {[%clk 0:02:47.2]} 10.
exd5 {[%clk 0:02:05.3]} 10... Re8 {[%clk 0:02:46.1]} 11. Nf3 {[%clk 0:02:01.2]}
11... Bg4 {[%clk 0:02:38.7]} 12. Kf1 {[%clk 0:02:00.8]} 12... Na6 {[%clk
0:02:30.8]} 13. Qd2 {[%clk 0:02:00.8]} 13... h5 {[%clk 0:02:27.1]} 14. Re1
{[%clk 0:02:01.4]} 14... Nc7 {[%clk 0:02:26]} 15. Ng5 {[%clk 0:01:59.8]} 15...
a6 {[%clk 0:02:19.1]} 16. Bxg4 {[%clk 0:01:54.3]} 16... Rxe1+ {[%clk 0:02:18.8]}
17. Qxe1 {[%clk 0:01:54.2]} 17... Nxg4 {[%clk 0:02:19.1]} 18. Nce4 {[%clk
0:01:39.3]} 18... Ne5 {[%clk 0:02:10.6]} 19. Nxc5 {[%clk 0:01:31.5]} 19... Nxc4
{[%clk 0:01:45]} 20. Nxb7 {[%clk 0:01:10]} 20... Qf6 {[%clk 0:01:42.5]} 21. Qe4
{[%clk 0:01:06.8]} 21... Re8 {[%clk 0:01:14.9]} 22. Qxc4 {[%clk 0:01:01.2]}
22... Qxb2 {[%clk 0:01:14.9]} 23. Nxd6 {[%clk 0:00:41.3]} 23... Qb1+ {[%clk
0:00:40.5]} 24. Qc1 {[%clk 0:00:41]} 24... Qd3+ {[%clk 0:00:40.3]} 25. Kg1
{[%clk 0:00:41.7]} 25... Re7 {[%clk 0:00:39.5]} 26. Rh3 {[%clk 0:00:36.2]} 26...
Qxd5 {[%clk 0:00:33]} 27. Nc8 {[%clk 0:00:31.7]} 27... Rd7 {[%clk 0:00:25.9]}
28. Bxc7 {[%clk 0:00:27.8]} 28... Qb7 {[%clk 0:00:23.7]} 29. Bd6 {[%clk
0:00:24.7]} 29... Bf6 {[%clk 0:00:20.2]} 30. Re3 {[%clk 0:00:21]} 30... Kg7
{[%clk 0:00:19.2]} 31. Re8 {[%clk 0:00:19.6]} 31... Qd5 {[%clk 0:00:15]} 32.
Bf8+ {[%clk 0:00:17.6]} 1-0

[Event "*** Titled Tuesday Blitz"]
[Site "Chess.com"]
[Date "2021.04.27"]
[Round "6"]
[White "Willhaven3"]
[Black "TST2014"]
[Result "0-1"]
[WhiteElo "2504"]
[BlackElo "2667"]
[TimeControl "180+1"]
[EndTime "11:06:16 PDT"]
[Termination "TST2014 won by resignation"]

1. d4 {[%clk 0:03:00.9]} 1... Nf6 {[%clk 0:02:59.6]} 2. Nf3 {[%clk 0:03:01.8]}
2... g6 {[%clk 0:02:57.3]} 3. c4 {[%clk 0:03:02.7]} 3... Bg7 {[%clk 0:02:57.6]}
4. Nc3 {[%clk 0:03:03.6]} 4... O-O {[%clk 0:02:56]} 5. e4 {[%clk 0:03:04.5]}
5... d6 {[%clk 0:02:56]} 6. Be2 {[%clk 0:03:05.4]} 6... e5 {[%clk 0:02:55.3]} 7.
Be3 {[%clk 0:03:06.2]} 7... Ng4 {[%clk 0:02:53.8]} 8. Bg5 {[%clk 0:03:05.6]}
8... Qe8 {[%clk 0:02:53.3]} 9. h3 {[%clk 0:03:02.3]} 9... exd4 {[%clk
0:02:52.2]} 10. Nxd4 {[%clk 0:03:02.1]} 10... Ne5 {[%clk 0:02:51.6]} 11. Nd5
{[%clk 0:02:53.7]} 11... f6 {[%clk 0:02:32.8]} 12. Be3 {[%clk 0:02:39.7]} 12...
Na6 {[%clk 0:02:31]} 13. O-O {[%clk 0:02:19.9]} 13... c6 {[%clk 0:02:30.6]} 14.
Nc3 {[%clk 0:02:18.5]} 14... f5 {[%clk 0:02:29.6]} 15. exf5 {[%clk 0:02:14.4]}
15... gxf5 {[%clk 0:02:28.8]} 16. Qd2 {[%clk 0:02:07.8]} 16... Qf7 {[%clk
0:02:22.4]} 17. Bh6 {[%clk 0:01:56.6]} 17... f4 {[%clk 0:02:16.3]} 18. Bxg7
{[%clk 0:01:51.8]} 18... Qxg7 {[%clk 0:02:16.5]} 19. Kh2 {[%clk 0:01:42.5]}
19... Nc5 {[%clk 0:01:59.5]} 20. Nf3 {[%clk 0:01:40.8]} 20... Rf6 {[%clk
0:01:44.3]} 21. Nxe5 {[%clk 0:01:36.4]} 21... dxe5 {[%clk 0:01:43.5]} 22. Qd8+
{[%clk 0:01:29.9]} 22... Rf8 {[%clk 0:01:41]} 23. Qd6 {[%clk 0:01:25.5]} 23...
b6 {[%clk 0:01:24.9]} 24. Bf3 {[%clk 0:01:23]} 24... Bf5 {[%clk 0:01:18]} 25.
Rfe1 {[%clk 0:00:50.7]} 25... Nd3 {[%clk 0:01:17.5]} 26. Qxc6 {[%clk 0:00:35.9]}
26... Nxf2 {[%clk 0:01:09.3]} 27. Ne4 {[%clk 0:00:18.7]} 27... Bxe4 {[%clk
0:01:06.7]} 28. Bxe4 {[%clk 0:00:18.9]} 28... Qg3+ {[%clk 0:01:05.7]} 29. Kg1
{[%clk 0:00:19]} 29... Nxh3+ {[%clk 0:01:05.9]} 30. Kh1 {[%clk 0:00:19.2]} 30...
Nf2+ {[%clk 0:01:04.9]} 31. Kg1 {[%clk 0:00:19.3]} 31... Ng4 {[%clk 0:01:03.8]}
32. Qd5+ {[%clk 0:00:18.1]} 32... Kh8 {[%clk 0:00:52.4]} 33. Bf3 {[%clk
0:00:17.9]} 33... Ne3 {[%clk 0:00:43.9]} 34. Qxe5+ {[%clk 0:00:15.5]} 34... Qg7
{[%clk 0:00:41.8]} 35. Rxe3 {[%clk 0:00:15.7]} 35... fxe3 {[%clk 0:00:41.2]} 36.
Qxe3 {[%clk 0:00:16.6]} 36... Rae8 {[%clk 0:00:40.5]} 37. Qb3 {[%clk 0:00:16]}
37... Qd4+ {[%clk 0:00:38.8]} 38. Kh2 {[%clk 0:00:14.9]} 38... Rf6 {[%clk
0:00:37.3]} 39. Rd1 {[%clk 0:00:13.4]} 39... Rh6+ {[%clk 0:00:36.8]} 40. Kg3
{[%clk 0:00:13.2]} 40... Rg8+ {[%clk 0:00:36.9]} 0-1

[Event "*** Titled Tuesday Blitz"]
[Site "Chess.com"]
[Date "2021.04.27"]
[Round "6"]
[White "Kapibara_Warri0r"]
[Black "AlexPapasimakopoulos"]
[Result "0-1"]
[WhiteElo "2232"]
[BlackElo "2569"]
[TimeControl "180+1"]
[EndTime "11:06:17 PDT"]
[Termination "AlexPapasimakopoulos won on time"]

1. e4 {[%clk 0:03:00.9]} 1... e6 {[%clk 0:02:56.8]} 2. d4 {[%clk 0:03:00.7]}
2... d5 {[%clk 0:02:56.9]} 3. Nc3 {[%clk 0:03:01.4]} 3... Bb4 {[%clk 0:02:56.5]}
4. e5 {[%clk 0:02:58.4]} 4... b6 {[%clk 0:02:56.3]} 5. a3 {[%clk 0:02:55.2]}
5... Bf8 {[%clk 0:02:55.7]} 6. f4 {[%clk 0:02:51.7]} 6... Nh6 {[%clk 0:02:53.8]}
7. Nf3 {[%clk 0:02:51.2]} 7... Be7 {[%clk 0:02:53.6]} 8. Bd3 {[%clk 0:02:50.3]}
8... Ba6 {[%clk 0:02:53]} 9. Bxa6 {[%clk 0:02:42.6]} 9... Nxa6 {[%clk
0:02:53.9]} 10. O-O {[%clk 0:02:43.2]} 10... c5 {[%clk 0:02:53.1]} 11. Be3
{[%clk 0:02:42]} 11... Nf5 {[%clk 0:02:47.5]} 12. Bf2 {[%clk 0:02:42.3]} 12...
h5 {[%clk 0:02:47.4]} 13. Qe2 {[%clk 0:02:36.1]} 13... cxd4 {[%clk 0:02:46.9]}
14. Nxd4 {[%clk 0:02:30.8]} 14... Nxd4 {[%clk 0:02:44.5]} 15. Qxa6 {[%clk
0:02:26.7]} 15... Nf5 {[%clk 0:02:37.6]} 16. Nb5 {[%clk 0:02:11.8]} 16... O-O
{[%clk 0:02:27.9]} 17. Nd4 {[%clk 0:02:11.8]} 17... Nxd4 {[%clk 0:02:23.2]} 18.
Bxd4 {[%clk 0:02:12.7]} 18... g6 {[%clk 0:02:19.4]} 19. Qd3 {[%clk 0:02:09.4]}
19... Rc8 {[%clk 0:02:19.3]} 20. c3 {[%clk 0:02:09.8]} 20... Qc7 {[%clk
0:02:17.7]} 21. Rad1 {[%clk 0:02:04.5]} 21... Qc4 {[%clk 0:02:16.8]} 22. Qg3
{[%clk 0:02:00.5]} 22... Kh7 {[%clk 0:02:06]} 23. Qh3 {[%clk 0:01:40.4]} 23...
Qe2 {[%clk 0:02:03.9]} 24. Rde1 {[%clk 0:01:29.3]} 24... Qg4 {[%clk 0:01:58.2]}
25. Qe3 {[%clk 0:01:21]} 25... Bc5 {[%clk 0:01:46.1]} 26. Rf3 {[%clk 0:01:14.3]}
26... Bxd4 {[%clk 0:01:44.6]} 27. Qxd4 {[%clk 0:01:14.9]} 27... Rc4 {[%clk
0:01:43.6]} 28. Qd2 {[%clk 0:01:11.4]} 28... Rfc8 {[%clk 0:01:30.2]} 29. Ref1
{[%clk 0:00:58.1]} 29... d4 {[%clk 0:01:22.6]} 30. Rg3 {[%clk 0:00:47.9]} 30...
dxc3 {[%clk 0:01:17]} 31. Qd7 {[%clk 0:00:47.2]} 31... Qf5 {[%clk 0:01:16.3]}
32. Rg5 {[%clk 0:00:44.7]} 32... R4c7 {[%clk 0:01:12]} 33. Qd1 {[%clk
0:00:21.1]} 33... c2 {[%clk 0:01:12]} 34. Qc1 {[%clk 0:00:09.6]} 34... Qd3
{[%clk 0:01:03.7]} 35. f5 {[%clk 0:00:08.9]} 35... exf5 {[%clk 0:01:02.7]} 36.
Rfxf5 {[%clk 0:00:07.9]} 36... Qd1+ {[%clk 0:00:48.1]} 37. Rf1 {[%clk
0:00:08.4]} 37... Qxc1 {[%clk 0:00:47.4]} 38. Rxc1 {[%clk 0:00:09.3]} 38... Rd8
{[%clk 0:00:47.3]} 39. Kf2 {[%clk 0:00:07.1]} 39... Rd1 {[%clk 0:00:47]} 0-1

[Event "*** Titled Tuesday Blitz"]
[Site "Chess.com"]
[Date "2021.04.27"]
[Round "6"]
[White "Cambek64"]
[Black "Margency"]
[Result "0-1"]
[WhiteElo "2492"]
[BlackElo "2662"]
[TimeControl "180+1"]
[EndTime "11:06:19 PDT"]
[Termination "Margency won by resignation"]

1. e4 {[%clk 0:02:58.6]} 1... c5 {[%clk 0:02:59.2]} 2. Nc3 {[%clk 0:02:58]} 2...
d6 {[%clk 0:02:59.1]} 3. d3 {[%clk 0:02:57.6]} 3... Nc6 {[%clk 0:02:59.1]} 4.
Be3 {[%clk 0:02:56.9]} 4... g6 {[%clk 0:02:59.2]} 5. d4 {[%clk 0:02:56]} 5...
cxd4 {[%clk 0:02:58.8]} 6. Bxd4 {[%clk 0:02:56.4]} 6... Nxd4 {[%clk 0:02:58.9]}
7. Qxd4 {[%clk 0:02:57.2]} 7... Nf6 {[%clk 0:02:59.3]} 8. e5 {[%clk 0:02:56.8]}
8... dxe5 {[%clk 0:02:58.5]} 9. Bb5+ {[%clk 0:02:57.1]} 9... Bd7 {[%clk
0:02:57.4]} 10. Qxe5 {[%clk 0:02:57.6]} 10... Bc6 {[%clk 0:02:15.9]} 11. Bxc6+
{[%clk 0:02:50.5]} 11... bxc6 {[%clk 0:02:15.8]} 12. Qc5 {[%clk 0:02:24.7]}
12... Qb6 {[%clk 0:02:10.7]} 13. Na4 {[%clk 0:02:15.2]} 13... Qb5 {[%clk
0:01:54]} 14. b3 {[%clk 0:02:09.4]} 14... e5 {[%clk 0:01:40.8]} 15. Qe3 {[%clk
0:02:05.1]} 15... Bg7 {[%clk 0:01:18.2]} 16. c4 {[%clk 0:01:59.1]} 16... Qa5+
{[%clk 0:01:17.8]} 17. Qd2 {[%clk 0:01:54.7]} 17... Qc7 {[%clk 0:01:10.3]} 18.
Ne2 {[%clk 0:01:50.8]} 18... O-O {[%clk 0:01:07.4]} 19. O-O {[%clk 0:01:48.7]}
19... Rad8 {[%clk 0:01:05.8]} 20. Qc2 {[%clk 0:01:43.8]} 20... e4 {[%clk
0:01:00]} 21. Rad1 {[%clk 0:01:43.5]} 21... Ng4 {[%clk 0:00:59.9]} 22. g3 {[%clk
0:01:23.9]} 22... e3 {[%clk 0:00:54.1]} 23. f3 {[%clk 0:01:03.7]} 23... Nf2
{[%clk 0:00:50.1]} 24. Rde1 {[%clk 0:00:52.6]} 24... Rd2 {[%clk 0:00:46.5]} 25.
Qb1 {[%clk 0:00:50.2]} 25... Qd7 {[%clk 0:00:22.5]} 26. Nac3 {[%clk 0:00:43.4]}
26... Bxc3 {[%clk 0:00:18.5]} 27. Nxc3 {[%clk 0:00:42.2]} 27... Qh3 {[%clk
0:00:18.8]} 28. Re2 {[%clk 0:00:39.3]} 28... Rfd8 {[%clk 0:00:14.8]} 29. Rfe1
{[%clk 0:00:34.9]} 29... Nd3 {[%clk 0:00:14.1]} 30. Ne4 {[%clk 0:00:25.5]} 30...
Nxe1 {[%clk 0:00:13.5]} 31. Nxd2 {[%clk 0:00:23.6]} 31... exd2 {[%clk
0:00:13.1]} 0-1